bitfinex/quotes_BTCUSD_20251027
["timestamp","ask_amount","ask_price","bid_price","bid_amount"]
[1761562255318,1.17983279,115460.0,115450.0,0.38064847]
[1761562261119,1.19606062,115460.0,115450.0,0.38064847]
[1761562261330,1.17983279,115460.0,115450.0,0.22860847]
[1761562261533,2.47784606,115460.0,115450.0,0.20748847]
[1761562261746,2.05348266,115460.0,115450.0,0.20748847]
[1761562262383,2.07684113,115460.0,115450.0,0.20748847]
[1761562262987,2.11700512,115460.0,115450.0,0.20748847]
[1761562263430,2.13935604,115460.0,115450.0,0.20748847]
[1761562263630,2.14835604,115460.0,115450.0,0.20748847]
[1761562264043,2.13935604,115460.0,115450.0,0.20748847]
[1761562264244,2.12312946,115460.0,115450.0,0.20748847]
[1761562264541,2.12234824,115460.0,115450.0,0.20748847]
[1761562264723,0.17326518,115430.0,115420.0,0.1732]
[1761562264932,0.72593245,115430.0,115420.0,0.38112489]
[1761562265136,0.74461139,115430.0,115420.0,0.38112489]
[1761562265285,0.72593245,115430.0,115420.0,0.38112489]
[1761562267169,0.27119784,115430.0,115420.0,0.38112489]
[1761562267350,0.70338334,115430.0,115420.0,0.38112489]
[1761562268572,0.7120154,115430.0,115420.0,0.38112489]
[1761562269230,0.7160154,115430.0,115420.0,0.38112489]
[1761562270134,0.7120154,115430.0,115420.0,0.38112489]
[1761562270344,0.80054331,115430.0,115420.0,0.38112489]
[1761562271629,0.7120154,115430.0,115420.0,0.38112489]
[1761562272047,0.2798299,115430.0,115420.0,0.38112489]
[1761562272257,0.7120154,115430.0,115420.0,0.38112489]
[1761562280094,0.71199346,115430.0,115420.0,0.38112489]
[1761562282730,0.27980796,115430.0,115420.0,0.38112489]
[1761562282931,0.75730063,115430.0,115420.0,0.38112489]
[1761562285398,0.79215817,115430.0,115420.0,0.38112489]
[1761562285606,0.79615817,115430.0,115420.0,0.38112489]
[1761562287158,0.3186655,115430.0,115420.0,0.38112489]
[1761562288341,0.750851,115430.0,115420.0,0.38112489]
[1761562290078,0.01209171,115430.0,115420.0,0.98659058]
[1761562290277,0.004,115430.0,115420.0,0.98659058]
[1761562290772,0.003,115430.0,115420.0,0.98659058]
[1761562291235,0.17323516,115450.0,115440.0,0.17325017]
[1761562291439,0.1813394,115450.0,115440.0,0.32533017]
[1761562291858,0.00810424,115450.0,115440.0,0.32533017]
[1761562292063,0.61402036,115460.0,115450.0,0.17323516]
[1761562292064,0.3486147,115460.0,115450.0,0.17323516]
[1761562292217,0.27975786,115460.0,115450.0,0.22867516]
[1761562292402,0.61975786,115460.0,115450.0,0.22867516]
[1761562292603,0.34810399,115460.0,115450.0,0.22867516]
[1761562293404,0.52132415,115460.0,115450.0,0.22867516]
[1761562294254,0.52232415,115460.0,115450.0,0.22867516]
[1761562294668,0.52132415,115460.0,115450.0,0.22867516]
[1761562302557,0.51322016,115460.0,115450.0,0.22867516]
[1761562303445,0.94540566,115460.0,115450.0,0.22867516]
[1761562303798,0.999369,115460.0,115450.0,0.22867516]
[1761562305897,0.999369,115460.0,115450.0,0.32524]
[1761562306080,0.999369,115460.0,115450.0,0.38064]
[1761562306378,1.00744696,115460.0,115450.0,0.38064]
[1761562306586,1.00744696,115460.0,115450.0,0.55387516]
[1761562307893,1.00744696,115460.0,115450.0,0.38064]
[1761562308300,1.00744696,115460.0,115450.0,0.55387516]
[1761562310184,1.00744696,115460.0,115450.0,0.38064]
[1761562311799,1.00744696,115460.0,115450.0,0.55387516]
[1761562313211,1.00744696,115460.0,115450.0,0.38064]
[1761562314061,1.00744696,115460.0,115450.0,0.55387516]
[1761562320870,0.00807796,115460.0,115450.0,0.55387516]
[1761562321071,0.01869533,115470.0,115460.0,0.17322016]
[1761562321290,0.66802455,115480.0,115470.0,0.17320516]
[1761562321291,0.01868902,115480.0,115470.0,0.17320516]
[1761562321490,0.68664763,115490.0,115480.0,0.17319016]
[1761562321690,0.02680062,115490.0,115480.0,0.22859016]
[1761562321973,0.0081116,115490.0,115480.0,0.22859016]
[1761562322175,0.00825708,115490.0,115480.0,0.22859016]
[1761562322377,0.34825708,115490.0,115480.0,0.22859016]
[1761562323416,0.34825708,115490.0,115480.0,0.714739]
[1761562323417,0.00925708,115490.0,115480.0,0.714739]
[1761562323766,0.00825708,115490.0,115480.0,0.714739]
[1761562323983,0.01125708,115490.0,115480.0,0.714739]
[1761562324563,0.00825708,115490.0,115480.0,0.714739]
[1761562325192,0.00925708,115490.0,115480.0,0.714739]
[1761562325395,0.00925708,115490.0,115480.0,0.22859016]
[1761562325607,0.00925708,115490.0,115480.0,0.714739]
[1761562325838,0.00825708,115490.0,115480.0,0.714739]
[1761562326821,0.00825708,115490.0,115480.0,0.716739]
[1761562327237,0.01026723,115490.0,115480.0,0.716739]
[1761562327679,0.01026723,115490.0,115480.0,0.80455801]
[1761562327890,0.01026723,115490.0,115480.0,0.80955801]
[1761562328112,0.00215563,115490.0,115480.0,0.80955801]
[1761562328523,0.00215563,115490.0,115480.0,0.84574029]
[1761562329407,0.00215563,115490.0,115480.0,1.18574029]
[1761562333568,0.00215563,115490.0,115480.0,1.39350029]
[1761562338039,0.00215563,115490.0,115480.0,0.90735145]
[1761562338256,0.00215563,115490.0,115480.0,1.39350029]
[1761562338492,0.00215563,115490.0,115480.0,1.56662029]
[1761562339931,0.00215563,115490.0,115480.0,1.53043801]
[1761562340070,0.00215563,115490.0,115480.0,1.56662029]
[1761562341361,0.00215563,115490.0,115480.0,1.71292029]
[1761562341791,0.00215563,115490.0,115480.0,1.27664029]
[1761562342005,0.00215563,115490.0,115480.0,1.86496029]
[1761562343396,0.00215563,115490.0,115480.0,1.86465729]
[1761562343617,0.00215563,115490.0,115480.0,1.82847501]
[1761562344363,0.00215563,115490.0,115480.0,1.86465729]
[1761562346049,0.00215563,115490.0,115480.0,0.79018845]
[1761562346265,0.01021687,115490.0,115480.0,1.86457729]
[1761562347101,0.01022084,115490.0,115480.0,1.71827729]
[1761562348558,0.01022084,115490.0,115480.0,1.13003729]
[1761562348784,0.01022084,115490.0,115480.0,1.71823729]
[1761562348976,0.00215563,115490.0,115480.0,1.71823729]
[1761562349407,0.01024023,115490.0,115480.0,1.71823729]
[1761562363839,0.01024023,115490.0,115480.0,1.66371225]
[1761562364061,0.00215563,115490.0,115480.0,1.66371225]
[1761562367415,0.00215563,115490.0,115480.0,1.23208845]
[1761562367628,0.00215563,115490.0,115480.0,1.66371225]
[1761562369974,0.00215563,115490.0,115480.0,1.62752997]
[1761562372302,0.00215563,115490.0,115480.0,1.66371225]
[1761562373272,0.00215563,115490.0,115480.0,1.7257665]
[1761562373528,0.00215563,115490.0,115480.0,1.68958422]
[1761562373703,0.00215563,115490.0,115480.0,1.7257665]
[1761562375698,0.00215563,115490.0,115480.0,1.2941427]
[1761562375860,0.00215563,115490.0,115480.0,1.7257665]
[1761562380018,0.00215563,115490.0,115480.0,1.2940227]
[1761562380229,0.00215563,115490.0,115480.0,0.76592042]
[1761562380436,0.00215563,115490.0,115480.0,0.91784042]
[1761562380640,0.00215563,115490.0,115480.0,0.85578617]
[1761562383226,0.60695459,115490.0,115480.0,0.76596716]
[1761562383426,0.00215563,115490.0,115480.0,0.76596716]
[1761562383816,0.1940973,115490.0,115480.0,0.76596716]
[1761562384019,0.17533079,115490.0,115480.0,0.76596716]
[1761562384967,0.20131456,115490.0,115480.0,0.76596716]
[1761562385113,0.20131456,115490.0,115480.0,0.76096716]
[1761562385852,0.20131456,115490.0,115480.0,0.76596716]
[1761562386077,0.20131456,115490.0,115480.0,0.76096716]
[1761562387549,0.20131456,115490.0,115480.0,0.76296716]
[1761562388332,0.63293836,115490.0,115480.0,0.002]
[1761562388538,0.63293836,115490.0,115480.0,0.23052]
[1761562388741,0.66779329,115490.0,115480.0,0.38248]
[1761562389150,0.20131456,115490.0,115480.0,0.38248]
[1761562389385,0.63293836,115490.0,115480.0,0.38048]
[1761562390835,0.63293836,115490.0,115480.0,0.38248]
[1761562395496,0.20131456,115490.0,115480.0,0.38248]
[1761562395704,0.63293836,115490.0,115480.0,0.38248]
[1761562397333,0.63293836,115490.0,115480.0,0.38048]
[1761562397640,0.63293836,115490.0,115480.0,0.38248]
[1761562399934,0.20131456,115490.0,115480.0,0.38248]
[1761562400175,0.63293836,115490.0,115480.0,0.38248]
[1761562401057,0.63293836,115490.0,115480.0,0.38048]
[1761562401589,0.63293836,115490.0,115480.0,0.38248]
[1761562404034,0.0281394,115490.0,115480.0,0.98729396]
[1761562404237,0.0281394,115490.0,115480.0,0.55567016]
[1761562404440,0.20131456,115490.0,115480.0,0.55567016]
[1761562404643,0.0281394,115490.0,115480.0,0.55567016]
[1761562404845,0.0281394,115490.0,115480.0,0.55367016]
[1761562405291,0.0281394,115490.0,115480.0,0.55567016]
[1761562408148,0.0281394,115490.0,115480.0,0.98729396]
[1761562408311,0.0281394,115490.0,115480.0,0.55567016]
[1761562408715,0.20131456,115490.0,115480.0,0.55567016]
[1761562408887,0.0281394,115490.0,115480.0,0.55567016]
[1761562410961,0.20131456,115490.0,115480.0,0.55567016]
[1761562412898,0.0281394,115490.0,115480.0,0.55567016]
[1761562413522,0.0281394,115490.0,115480.0,0.76343016]
[1761562418611,0.20131456,115490.0,115480.0,0.76343016]
[1761562423423,0.0281394,115490.0,115480.0,0.76343016]
[1761562425758,0.0281394,115490.0,115480.0,1.24922314]
[1761562427182,0.0281394,115490.0,115480.0,0.76343016]
[1761562427329,0.0281394,115490.0,115480.0,1.24922314]
[1761562430384,0.0281394,115490.0,115480.0,1.33904215]
[1761562430786,0.0281394,115490.0,115480.0,1.37522443]
[1761562430987,0.00215563,115490.0,115480.0,1.37522443]
[1761562438701,0.00215563,115490.0,115480.0,0.64588917]
[1761562438824,0.00215563,115490.0,115480.0,0.85324917]
[1761562439680,0.00215563,115490.0,115480.0,1.33904215]
[1761562440698,0.00215563,115490.0,115480.0,0.85324917]
[1761562441347,0.00215563,115490.0,115480.0,0.76339016]
[1761562442408,0.48794861,115490.0,115480.0,0.76339016]
[1761562442606,0.00215563,115490.0,115480.0,0.55563016]
[1761562443014,0.1940973,115490.0,115480.0,0.55563016]
[1761562443212,0.17533079,115490.0,115480.0,0.55563016]
[1761562443423,0.00215563,115490.0,115480.0,0.55563016]
[1761562443622,0.02092214,115490.0,115480.0,0.55563016]
[1761562444572,0.00215563,115490.0,115480.0,0.55563016]
[1761562444774,0.17533079,115490.0,115480.0,0.55563016]
[1761562444991,0.1940973,115490.0,115480.0,0.55563016]
[1761562445115,0.66112377,115490.0,115480.0,0.55563016]
[1761562445919,0.48794861,115490.0,115480.0,0.55563016]
[1761562446155,0.66112377,115490.0,115480.0,0.17519016]
[1761562446355,0.66112377,115490.0,115480.0,0.55563016]
[1761562446559,0.66112377,115490.0,115480.0,0.38244]
[1761562447400,0.66112377,115490.0,115480.0,0.55563016]
[1761562447653,0.66112377,115490.0,115480.0,0.38244]
[1761562448649,0.66112377,115490.0,115480.0,0.38226102]
[1761562451071,0.66112377,115490.0,115480.0,0.38044]
[1761562451471,0.66112377,115490.0,115480.0,0.38244]
[1761562451886,0.66112377,115490.0,115480.0,0.38044]
[1761562452212,0.66112377,115490.0,115480.0,0.38244]
[1761562453010,0.75094278,115490.0,115480.0,0.38244]
[1761562453196,0.78616858,115490.0,115480.0,0.38244]
[1761562453394,0.75094278,115490.0,115480.0,0.38244]
[1761562453650,0.77693088,115490.0,115480.0,0.38244]
[1761562454948,0.77693088,115490.0,115480.0,0.38044]
[1761562455459,0.77793088,115490.0,115480.0,0.38044]
[1761562456105,0.77893088,115490.0,115480.0,0.38044]
[1761562460144,0.86874989,115490.0,115480.0,0.38044]
[1761562460948,0.77893088,115490.0,115480.0,0.38044]
[1761562462414,1.11893088,115490.0,115480.0,0.22852]
[1761562462654,1.12702716,115490.0,115480.0,0.22852]
[1761562462865,1.12702716,115490.0,115480.0,0.38048]
[1761562467168,1.14568298,115490.0,115480.0,0.38048]
[1761562467570,1.23395157,115490.0,115480.0,0.38048]
[1761562467775,1.14568298,115490.0,115480.0,0.38048]
[1761562470710,1.63147596,115490.0,115480.0,0.38048]
[1761562471121,1.14568298,115490.0,115480.0,0.38048]
[1761562472967,3.63147596,115490.0,115480.0,0.38048]
[1761562473208,2.92098796,115490.0,115480.0,0.38048]
[1761562473409,2.46581099,115490.0,115480.0,0.38048]
[1761562473620,2.95160397,115490.0,115480.0,0.38048]
[1761562474561,3.02098579,115490.0,115480.0,0.22852]
[1761562474791,3.03718379,115490.0,115480.0,0.38048]
[1761562474985,3.06831236,115490.0,115480.0,0.38048]
[1761562475666,2.55449336,115490.0,115480.0,0.38048]
[1761562476085,2.56249336,115490.0,115480.0,0.38048]
[1761562476295,2.40045336,115490.0,115480.0,0.38048]
[1761562476535,2.36932479,115490.0,115480.0,0.38048]
[1761562476742,2.36832479,115490.0,115480.0,0.38048]
[1761562477131,2.37032479,115490.0,115480.0,0.38048]
[1761562477521,2.36832479,115490.0,115480.0,0.38048]
[1761562477721,2.36032479,115490.0,115480.0,0.38048]
[1761562478293,2.36532479,115490.0,115480.0,0.38048]
[1761562478495,2.36032479,115490.0,115480.0,0.38048]
[1761562478890,2.36732479,115490.0,115480.0,0.38048]
[1761562479047,2.36832479,115490.0,115480.0,0.38048]
[1761562479494,2.36732479,115490.0,115480.0,0.38048]
[1761562479838,2.36932479,115490.0,115480.0,0.38048]
[1761562480852,2.40045336,115490.0,115480.0,0.38048]
[1761562481300,0.17323516,115450.0,115440.0,0.2078]
[1761562481501,0.65902814,115450.0,115440.0,0.4364]
[1761562482116,0.17323516,115450.0,115440.0,0.4364]
[1761562482270,0.65902814,115450.0,115440.0,0.4364]
[1761562482484,0.17323516,115450.0,115440.0,0.58836]
[1761562482877,0.65902814,115450.0,115440.0,0.59136]
[1761562483297,0.66758583,115450.0,115440.0,0.59136]
[1761562485811,0.61401245,115450.0,115440.0,0.59136]
[1761562487478,0.61401245,115450.0,115440.0,0.58836]
[1761562487690,0.61401245,115450.0,115440.0,0.59136]
[1761562489692,0.18179285,115450.0,115440.0,0.59136]
[1761562489966,0.17323516,115450.0,115440.0,1.19682977]
[1761562490143,0.18203786,115460.0,115440.0,0.76461017]
[1761562490357,0.17323516,115450.0,115440.0,0.76461017]
[1761562490939,0.17323516,115450.0,115440.0,0.76161017]
[1761562491333,0.17323516,115450.0,115440.0,0.76461017]
[1761562493042,0.18206935,115460.0,115440.0,0.76461017]
[1761562493245,0.02599316,115450.0,115440.0,0.76461017]
[1761562493673,0.19922832,115450.0,115440.0,0.76461017]
[1761562494250,0.19922832,115450.0,115440.0,0.76161017]
[1761562494617,0.19922832,115450.0,115440.0,0.76461017]
[1761562494818,0.19922832,115450.0,115440.0,0.76161017]
[1761562495199,0.19922832,115450.0,115440.0,0.76461017]
[1761562502868,0.19922832,115450.0,115440.0,0.59136]
[1761562503379,0.19922832,115450.0,115440.0,0.55685017]
[1761562503604,0.19922832,115450.0,115440.0,0.3836]
[1761562503815,0.19922832,115450.0,115440.0,0.2316]
[1761562503992,0.19922832,115450.0,115440.0,0.3836]
[1761562504387,0.17323516,115450.0,115440.0,0.3836]
[1761562510765,0.17323516,115450.0,115440.0,0.55685017]
[1761562511559,0.17335965,115460.0,115440.0,0.55685017]
[1761562511761,0.17323516,115450.0,115440.0,0.55685017]
[1761562513358,0.17323516,115450.0,115440.0,0.55385017]
[1761562513739,0.17323516,115450.0,115440.0,0.55685017]
[1761562514083,0.17323516,115450.0,115440.0,0.55385017]
[1761562514484,0.17323516,115450.0,115440.0,0.55685017]
[1761562515877,0.17323516,115450.0,115440.0,0.3836]
[1761562516061,0.17323516,115450.0,115440.0,0.55685017]
[1761562516417,0.17323516,115450.0,115440.0,0.003]
[1761562516619,0.17323516,115450.0,115440.0,0.38356]
[1761562517341,0.17323516,115450.0,115440.0,0.38056]
[1761562517542,0.17323516,115450.0,115440.0,0.55381017]
[1761562517744,0.17323516,115450.0,115440.0,0.55681017]
[1761562517949,0.17323516,115450.0,115440.0,0.55381017]
[1761562518307,0.17323516,115450.0,115440.0,0.55681017]
[1761562520668,0.17323516,115450.0,115440.0,0.55381017]
[1761562522764,0.17423516,115450.0,115440.0,0.55381017]
[1761562527140,0.17423516,115450.0,115440.0,0.38056]
[1761562527512,0.17423516,115450.0,115440.0,0.55381017]
[1761562528172,0.17423516,115450.0,115440.0,0.38056]
[1761562528378,0.17423516,115450.0,115440.0,0.55381017]
[1761562530765,0.17423516,115450.0,115440.0,0.38056]
[1761562531493,0.17423516,115450.0,115440.0,0.55381017]
[1761562531922,0.17325017,115440.0,115430.0,0.19926017]
[1761562532124,0.17325017,115440.0,115430.0,0.55382518]
[1761562533109,0.17325017,115440.0,115430.0,0.55682518]
[1761562542249,0.17325017,115440.0,115430.0,0.38356]
[1761562542414,0.60546977,115440.0,115430.0,0.38356]
[1761562547735,0.65958412,115440.0,115430.0,0.38356]
[1761562552021,0.17325017,115440.0,115430.0,0.38356]
[1761562552149,0.65958412,115440.0,115430.0,0.38356]
[1761562554082,0.65958412,115440.0,115430.0,0.55682518]
[1761562554197,0.65958412,115440.0,115430.0,0.38356]
[1761562561590,1.57573708,115440.0,115430.0,0.2316]
[1761562561833,1.58385232,115440.0,115430.0,0.2316]
[1761562562003,1.58385232,115440.0,115430.0,0.38356]
[1761562562705,1.58385232,115440.0,115430.0,0.38056]
[1761562563580,1.58585232,115440.0,115430.0,0.38056]
[1761562563925,1.58685232,115440.0,115430.0,0.38056]
[1761562564701,1.58585232,115440.0,115430.0,0.38056]
[1761562564849,1.58685232,115440.0,115430.0,0.38056]
[1761562567679,1.58684587,115440.0,115430.0,0.38056]
[1761562570994,0.61417797,115440.0,115430.0,0.38056]
[1761562571529,1.10051192,115440.0,115430.0,0.38056]
[1761562571829,1.10051106,115440.0,115430.0,0.38056]
[1761562576157,1.10386783,115440.0,115430.0,0.38056]
[1761562579496,0.61753388,115440.0,115430.0,0.38056]
[1761562579640,1.10386783,115440.0,115430.0,0.38056]
[1761562590940,1.10186783,115440.0,115430.0,0.38056]
[1761562591882,1.10086783,115440.0,115430.0,0.38056]
[1761562592086,1.10186783,115440.0,115430.0,0.38056]
[1761562596791,1.58820178,115440.0,115430.0,0.38056]
[1761562596998,1.67297558,115440.0,115430.0,0.38056]
[1761562597196,1.69167925,115440.0,115430.0,0.38056]
[1761562600629,1.60690545,115440.0,115430.0,0.38056]
[1761562604029,0.17328019,115420.0,115400.0,0.17342007]
[1761562604293,0.65961414,115420.0,115410.0,0.5539352]
[1761562604433,0.17328019,115420.0,115410.0,0.5539352]
[1761562605373,0.17328019,115420.0,115410.0,0.55442009]
[1761562606035,0.17328019,115420.0,115410.0,0.55942009]
[1761562607212,0.66828678,115430.0,115410.0,0.55942009]
[1761562607431,0.17328019,115420.0,115410.0,0.55942009]
[1761562609114,0.27177184,115430.0,115410.0,0.55942009]
[1761562609380,0.27988954,115430.0,115410.0,0.55942009]
[1761562610406,0.17328019,115420.0,115410.0,0.55442009]
[1761562610806,0.17328019,115420.0,115410.0,0.55942009]
[1761562612007,0.17328019,115420.0,115410.0,0.55442009]
[1761562612209,0.17328019,115420.0,115410.0,0.55942009]
[1761562613575,0.17328019,115420.0,115410.0,0.58542143]
[1761562614639,0.27177184,115430.0,115410.0,0.58542143]
[1761562614867,0.27988958,115430.0,115410.0,0.58542143]
[1761562615198,0.17328019,115420.0,115410.0,0.58542143]
[1761562615397,0.17328019,115420.0,115410.0,0.58042143]
[1761562615808,0.17328019,115420.0,115410.0,0.58542143]
[1761562616162,0.27177184,115430.0,115410.0,0.58042143]
[1761562616309,0.17328019,115420.0,115410.0,0.58042143]
[1761562616509,0.18195283,115430.0,115420.0,0.17328019]
[1761562616857,0.19007078,115430.0,115420.0,0.17328019]
[1761562618658,0.19007078,115430.0,115420.0,0.17628019]
[1761562620950,0.19007078,115430.0,115420.0,0.003]
[1761562621507,0.19007078,115430.0,115420.0,0.05844]
[1761562623031,0.62238756,115430.0,115420.0,0.05844]
[1761562623436,0.62238756,115430.0,115420.0,0.38364]
[1761562624162,0.62338756,115430.0,115420.0,0.38364]
[1761562624370,0.19107078,115430.0,115420.0,0.38064]
[1761562624774,0.21707185,115430.0,115420.0,0.38064]
[1761562634155,0.21707185,115430.0,115420.0,0.55392019]
[1761562634981,0.21707185,115430.0,115420.0,0.38064]
[1761562635573,0.2089539,115430.0,115420.0,0.38064]
[1761562636023,0.21707378,115430.0,115420.0,0.38064]
[1761562636172,0.2089539,115430.0,115420.0,0.38064]
[1761562636766,0.21707375,115430.0,115420.0,0.38064]
[1761562637060,0.64127068,115430.0,115420.0,0.22868]
[1761562637267,0.64127068,115430.0,115420.0,0.38064]
[1761562637500,0.64939056,115430.0,115420.0,0.38064]
[1761562639285,0.51328019,115420.0,115410.0,0.00048489]
[1761562639513,0.51328019,115420.0,115410.0,0.20388489]
[1761562639514,1.07848805,115420.0,115410.0,0.20388489]
[1761562639711,1.07848805,115420.0,115410.0,0.20788489]
[1761562640117,1.10449518,115420.0,115410.0,0.20788489]
[1761562640314,1.19431419,115420.0,115410.0,0.20788489]
[1761562640508,1.19431419,115420.0,115410.0,0.21088489]
[1761562640700,1.19431419,115420.0,115410.0,0.20788489]
[1761562640918,1.19531419,115420.0,115410.0,0.20788489]
[1761562641120,1.19731419,115420.0,115410.0,0.20788489]
[1761562642173,1.19730231,115420.0,115410.0,0.20788489]
[1761562644400,1.1074833,115420.0,115410.0,0.20788489]
[1761562645255,1.0912414,115420.0,115410.0,0.20788489]
[1761562645409,1.10743827,115420.0,115410.0,0.20788489]
[1761562651192,1.08872798,115420.0,115410.0,0.20788489]
[1761562652803,1.08871793,115420.0,115410.0,0.20788489]
[1761562653965,0.64021433,115420.0,115410.0,0.20788489]
[1761562654165,1.08164883,115420.0,115410.0,0.20788489]
[1761562654795,0.64933205,115420.0,115410.0,0.20788489]
[1761562654986,1.08164883,115420.0,115410.0,0.20788489]
[1761562659237,1.0978409,115420.0,115410.0,0.20788489]
[1761562659771,1.0978409,115420.0,115410.0,0.38116489]
[1761562660176,1.11649402,115420.0,115410.0,0.38116489]
[1761562660346,1.0978409,115420.0,115410.0,0.38116489]
[1761562661899,1.11649636,115420.0,115410.0,0.38116489]
[1761562665287,1.11649636,115420.0,115410.0,0.22920489]
[1761562665488,1.11649636,115420.0,115410.0,0.38116489]
[1761562668165,1.13987344,115420.0,115410.0,0.38116489]
[1761562669880,1.68086744,115420.0,115410.0,0.38116489]
[1761562671561,1.67174972,115420.0,115410.0,0.38116489]
[1761562674019,1.18509433,115420.0,115410.0,0.38116489]
[1761562679435,1.18515217,115420.0,115410.0,0.38116489]
[1761562682080,1.16177509,115420.0,115410.0,0.38116489]
[1761562684297,0.64911257,115420.0,115410.0,0.38116489]
[1761562684689,1.13576796,115420.0,115410.0,0.38116489]
[1761562685288,0.64911257,115420.0,115410.0,0.38116489]
[1761562686855,0.64915788,115420.0,115410.0,0.38116489]
[1761562687304,0.63291927,115420.0,115410.0,0.38116489]
[1761562687648,1.11957466,115420.0,115410.0,0.38116489]
[1761562688267,0.6142185,115420.0,115410.0,0.38116489]
[1761562688466,0.6142185,115420.0,115410.0,0.55446009]
[1761562689264,0.52439949,115420.0,115410.0,0.55446009]
[1761562690508,0.52439949,115420.0,115410.0,0.38116489]
[1761562691425,1.01105488,115420.0,115410.0,0.38116489]
[1761562691711,0.52439949,115420.0,115410.0,0.38116489]
[1761562691886,0.52439949,115420.0,115410.0,0.55446009]
[1761562692287,0.52439949,115420.0,115410.0,0.38116489]
[1761562693424,0.52438919,115420.0,115410.0,0.38116489]
[1761562693989,0.52438919,115420.0,115410.0,0.58908489]
[1761562697383,1.01104458,115420.0,115410.0,0.58908489]
[1761562697589,1.01104458,115420.0,115410.0,0.76238009]
[1761562697788,0.011109,115420.0,115410.0,1.24903548]
[1761562697990,0.003,115420.0,115410.0,1.24903548]
[1761562698410,0.003,115420.0,115410.0,0.76238009]
[1761562698614,0.002,115420.0,115410.0,1.24903548]
[1761562699004,1.00860822,115430.0,115420.0,0.17328019]
[1761562699201,1.01671285,115430.0,115410.0,0.76238009]
[1761562699429,1.01671285,115430.0,115420.0,0.17328019]
[1761562700551,0.53005746,115430.0,115420.0,0.17328019]
[1761562700772,1.01671285,115430.0,115420.0,0.17328019]
[1761562701338,1.01671285,115430.0,115410.0,0.78838082]
[1761562701540,1.05185094,115430.0,115410.0,0.78838082]
[1761562701964,1.01671285,115430.0,115420.0,0.17328019]
[1761562702786,0.53005746,115430.0,115420.0,0.17328019]
[1761562702939,1.01671285,115430.0,115420.0,0.17328019]
[1761562704083,1.00523376,115430.0,115420.0,0.17328019]
[1761562704740,1.00523376,115430.0,115410.0,0.78838082]
[1761562704926,1.00523376,115430.0,115420.0,0.17328019]
[1761562709821,0.51857837,115430.0,115420.0,0.17328019]
[1761562710036,1.00523376,115430.0,115420.0,0.17328019]
[1761562710603,0.51857837,115430.0,115420.0,0.17328019]
[1761562710805,1.00523376,115430.0,115420.0,0.17328019]
[1761562713098,1.00523376,115430.0,115410.0,0.78838082]
[1761562713321,1.00523376,115430.0,115420.0,0.05544]
[1761562715262,1.00523376,115430.0,115420.0,0.22872019]
[1761562718081,1.00523376,115430.0,115420.0,0.40196019]
[1761562718662,0.00810463,115430.0,115420.0,0.40196019]
[1761562718908,1.01137498,115440.0,115430.0,0.17326518]
[1761562719094,1.01137472,115440.0,115430.0,0.32518518]
[1761562720270,1.01137472,115440.0,115430.0,0.15192]
[1761562721218,1.01337472,115440.0,115430.0,0.32518518]
[1761562721520,1.01437472,115440.0,115430.0,0.32518518]
[1761562721691,1.01437472,115440.0,115430.0,0.15192]
[1761562722057,1.01437472,115440.0,115430.0,0.32518518]
[1761562722699,1.01437472,115440.0,115430.0,0.15192]
[1761562723295,1.01437472,115440.0,115430.0,0.32518518]
[1761562723782,1.01437472,115440.0,115430.0,0.15192]
[1761562725234,1.01437472,115440.0,115430.0,0.32518518]
[1761562730676,1.01437472,115440.0,115430.0,0.15192]
[1761562731102,1.01437472,115440.0,115430.0,0.32518518]
[1761562731462,0.52771933,115440.0,115430.0,0.32518518]
[1761562731817,0.95999819,115440.0,115430.0,0.32518518]
[1761562733716,0.95999819,115440.0,115430.0,0.15192]
[1761562733972,0.17326518,115430.0,115420.0,0.63583837]
[1761562734160,0.18137591,115430.0,115420.0,0.78775837]
[1761562736370,0.61365477,115430.0,115420.0,0.55440019]
[1761562736520,0.61365477,115430.0,115420.0,0.58848]
[1761562737469,0.95365477,115430.0,115420.0,0.58848]
[1761562738129,0.17328019,115420.0,115410.0,0.20844452]
[1761562738250,0.17328019,115420.0,115410.0,0.79692452]
[1761562740750,0.51326518,115430.0,115410.0,0.79992452]
[1761562740883,0.95365968,115430.0,115420.0,0.17328019]
[1761562741090,0.52138082,115430.0,115420.0,0.17328019]
[1761562742518,0.52138082,115430.0,115410.0,0.79692452]
[1761562743923,0.52138082,115430.0,115410.0,0.79992452]
[1761562744521,0.52138082,115430.0,115410.0,0.77392485]
[1761562745448,0.95365968,115430.0,115410.0,0.77392485]
[1761562745765,0.52138082,115430.0,115420.0,0.17328019]
[1761562746379,0.52138082,115430.0,115410.0,0.77392485]
[1761562746691,0.52138082,115430.0,115410.0,0.77092485]
[1761562747102,0.17328019,115420.0,115410.0,0.77092485]
[1761562747637,0.17328019,115420.0,115410.0,0.77392485]
[1761562747842,0.17328019,115420.0,115410.0,0.77092485]
[1761562748368,0.17328019,115420.0,115410.0,0.77392485]
[1761562756740,0.94554404,115430.0,115410.0,0.77392485]
[1761562756959,0.95366135,115430.0,115420.0,0.05544]
[1761562757165,0.52138249,115430.0,115420.0,0.2460482]
[1761562757377,0.52138249,115430.0,115420.0,0.22872019]
[1761562757717,0.34811731,115430.0,115420.0,0.22872019]
[1761562758712,0.00811731,115430.0,115420.0,0.22872019]
[1761562764333,0.51760782,115440.0,115430.0,0.17326518]
[1761562764550,0.52572164,115440.0,115430.0,0.15188]
[1761562764751,0.52572164,115440.0,115430.0,0.16920651]
[1761562765119,0.52572164,115440.0,115430.0,0.34247169]
[1761562765249,0.52572164,115440.0,115430.0,0.32514518]
[1761562765658,0.52572164,115440.0,115430.0,0.15188]
[1761562765996,0.52572164,115440.0,115430.0,0.34244651]
[1761562766175,0.52872164,115440.0,115430.0,0.32512]
[1761562770180,0.52872164,115440.0,115430.0,0.49838518]
[1761562770918,0.52872164,115440.0,115430.0,0.70626518]
[1761562771595,0.52872164,115440.0,115430.0,0.533]
[1761562772844,0.9610005,115440.0,115430.0,0.533]
[1761562780493,0.9610005,115440.0,115430.0,0.58844]
[1761562783747,0.9610005,115440.0,115430.0,0.38056]
[1761562784822,0.52872164,115440.0,115430.0,0.38056]
[1761562785140,0.52872164,115440.0,115430.0,0.55382518]
[1761562786175,0.52872164,115440.0,115430.0,0.38056]
[1761562786786,0.52872164,115440.0,115430.0,0.55382518]
[1761562787032,0.5287263,115440.0,115430.0,0.55382518]
[1761562787824,0.01547525,115440.0,115430.0,0.55382518]
[1761562788476,0.01547525,115440.0,115430.0,0.76170518]
[1761562789013,0.01547525,115440.0,115430.0,1.19398404]
[1761562789154,0.00735677,115440.0,115430.0,1.19398404]
[1761562789776,0.00635677,115440.0,115430.0,1.19398404]
[1761562789954,0.00435677,115440.0,115430.0,1.19398404]
[1761562790333,0.00435677,115440.0,115430.0,1.19598404]
[1761562791156,0.00435677,115440.0,115430.0,0.76370518]
[1761562791767,0.00435677,115440.0,115430.0,1.24983827]